[Event "FRA-ch Teams Top 16-B 2022"]
[Site "Chartres"]
[Date "2022.06.12"]
[Round "4.7"]
[White "Goldsztejn, Gildas"]
[Black "Le Pen, Steven"]
[Result "1-0"]
[ECO "A37"]
[WhiteElo "2413"]
[BlackElo "2090"]
[Annotator "TA"]
[PlyCount "69"]
[EventDate "2022.06.09"]
[EventType "team-tourn"]
[EventCountry "FRA"]
[SourceTitle "playchess.com"]
[Source "ChessBase"]
[SourceQuality "1"]
[TimeControl "40/5400+30:1800+30"]

{[%evp 21,68,25,18,0,51,39,47,37,40,23,24,0,23,16,24,23,37,56,42,60,79,83,111,113,104,116,138,141,359,350,312,331,503,497,464,501,438,488,469,468,435,427,666,661,653,646,29997,29998,29999]} 1. Nf3 {[%emt 0:00:09]} c5 {[%emt 0:00:15]} 2. c4 {[%emt 0:00:06]} Nc6 {[%emt 0:00:17]} 3. Nc3 {[%emt 0:00:05]} e5 {[%emt 0:02:23]} 4. g3 {[%emt 0:00:20]} g6 {[%emt 0:00:35]} 5. Bg2 {[%emt 0:00:23]} Bg7 {[%emt 0:00:20]} 6. O-O {[%emt 0:00:40]} Nge7 {[%emt 0:01:44]} 7. a3 {[%emt 0:00:06]} O-O {[%emt 0:03:06]} 8. Rb1 {[%emt 0:01:47]} a5 {[%emt 0:09:31]} 9. Ne1 {[%emt 0:01:58][%cal Bf3e1,Be1c2,Bc2e3,Be3d5][%mdl 32]} d6 {[%emt 0:02:31]} 10. Nc2 {[%emt 0:00:34]} Be6 {[%emt 0:01:19]} 11. Ne3 {[%emt 0:05:03]} Rb8 {[%emt 0:04:39]} 12. Ned5 {[%emt 0:09:24] A37: Symmetrical English vs ...g6: 4 Bg2 Bg7 5 Nf3.} b6 {[%emt 0:03:48]} ({Better is} 12... b5 $11) 13. d3 $14 {[%emt 0:04:18]} Qd7 {[%emt 0:01:39]} 14. Re1 {[%emt 0:09:51] White is slightly better.} Bh3 {[%emt 0:07:12]} 15. Bh1 {[%emt 0:00:23]} (15. Bxh3 {keeps more tension.} Qxh3 16. Qa4 Rfc8 17. Nxe7+ Nxe7 18. b4) 15... Nxd5 {[%emt 0:01:05]} 16. Nxd5 {[%emt 0:02:22]} Ne7 {[%emt 0:02:11] [#]} 17. Nxe7+ $146 {[%emt 0:05:31]} ({Predecessor:} 17. b4 Nxd5 18. Bxd5 Be6 19. Bg2 axb4 20. axb4 d5 21. Ba3 dxc4 22. bxc5 bxc5 23. dxc4 Rxb1 24. Qxb1 {½-½ (44) Coca,C (1929)-Patrascu,C (2275) Calimanesti Caciulata 2017}) 17... Qxe7 {[%emt 0:02:57]} 18. b4 {[%emt 0:00:12]} Be6 {[%emt 0:08:27]} 19. bxa5 {[%emt 0:16:20]} bxa5 {[%emt 0:00:41]} 20. Bd2 {[%emt 0:00:08]} Rxb1 {[%emt 0:04:55]} 21. Qxb1 {[%emt 0:02:46]} a4 {[%emt 0:01:33]} 22. Qb5 {[%emt 0:00:55]} Bd7 {[%emt 0:04:20]} 23. Qb7 {[%emt 0:00:17] Strongly threatening Bc6.} Re8 {[%emt 0:01:22]} 24. Rb1 {[%emt 0:00:48][%cal Be1b1,Bb1b7,Bb7g7,Bg7h7][%mdl 32] White is more active.} f5 $2 {[%emt 0:08:04] Loses the game.} (24... Rc8 $16 {was necessary.} 25. Bd5 Qe8) 25. Qa7 $18 {[%emt 0:12:16] Black must now prevent Rb7.} Be6 {[%emt 0:15:18]} (25... e4 $2 26. Rb7 $18) 26. Rb7 {[%emt 0:02:20]} (26. Qxa4 Rd8 27. Rb7 Qf6 $18) 26... Qf6 {[%emt 0:01:25]} (26... Qf8 {was worth a try.} 27. Bc6 (27. Qxa4 Kh8 $18) 27... Rc8) 27. Bc6 {[%emt 0:04:02]} Rc8 {[%emt 0:03:07] [#]} 28. Bg5 $1 {[%emt 0:02:33][%mdl 512]} Qxg5 {[%emt 0:01:28]} 29. Rxg7+ {[%emt 0:00:11]} Kf8 {[%emt 0:00:07] [#]} 30. Rxh7 $1 {[%emt 0:00:09][%csl Gh7][%cal Ra7g7]} Qf6 {[%emt 0:01:29] Prevents Qg7+.} 31. Bxa4 {[%emt 0:02:24] Threatens to win with Bd7.} Bf7 {[%emt 0:01:27]} (31... Bg8 $142 32. Rd7 e4) 32. Qd7 {[%emt 0:00:58]} Ra8 {[%emt 0:01:59]} 33. Bc6 {[%emt 0:00:19]} Rxa3 {[%emt 0:02:54]} 34. Qc8+ {[%emt 0:00:07]} Ke7 {[%emt 0:00:11]} 35. Qe8# {[%emt 0:00:08] Weighted Error Value: White=0.04 (flawless) /Black=0.66} 1-0

[Event "FRA-ch Teams Top 16-B 2022"]
[Site "Chartres"]
[Date "2022.06.12"]
[Round "4.8"]
[White "Ruhlmann, Helene"]
[Black "Guichard, Pauline"]
[Result "0-1"]
[ECO "E49"]
[WhiteElo "1779"]
[BlackElo "2377"]
[Annotator "TA"]
[PlyCount "122"]
[EventDate "2022.06.09"]
[EventType "team-tourn"]
[EventCountry "FRA"]
[SourceTitle "playchess.com"]
[Source "ChessBase"]
[SourceQuality "1"]
[TimeControl "40/5400+30:1800+30"]

{[%evp 14,122,0,-9,16,0,28,25,31,0,0,8,61,58,91,76,91,85,99,84,87,100,92,102,150,154,141,150,151,147,235,131,135,123,146,21,23,5,29,0,13,6,23,33,74,89,89,0,58,50,65,60,66,57,247,247,356,338,336,106,114,116,103,93,197,106,97,72,81,85,75,40,33,21,16,14,15,16,17,0,0,0,5,5,7,0,0,0,0,0,0,0,0,0,0,0,0,0,-2,-312,-296,-286,-275,-486,-277,-643,-334,-2738,-1735,-1208,-802]} 1. d4 {[%emt 0:00:03]} Nf6 {[%emt 0:00:06]} 2. c4 {[%emt 0:00:06]} e6 {[%emt 0:00:04]} 3. Nc3 {[%emt 0:00:15]} Bb4 {[%emt 0:00:08]} 4. e3 {[%emt 0:00:17]} O-O {[%emt 0:00:11]} 5. Bd3 {[%emt 0:00:34]} d5 {[%emt 0:00:18]} 6. Nge2 {[%emt 0:01:33]} c5 {[%emt 0:05:12]} 7. a3 {[%emt 0:01:09]} Bxc3+ {[%emt 0:01:23]} 8. bxc3 {[%emt 0:00:10]} b6 {[%emt 0:14:03] E49: Nimzo-Indian: Rubinstein: 5 Bd3 d5 6 a3 Bxc3+ 7 bxc3.} 9. O-O {[%emt 0:04:33]} dxc4 {[%emt 0:01:32]} 10. Bxc4 {[%emt 0:00:14]} Qc7 {[%emt 0:00:08] White has an edge.} 11. Ba2 {[%emt 0:02:27]} Rd8 {[%emt 0:04:09]} 12. Bb2 {[%emt 0:03:12] [#]} c4 $146 {[%emt 0:03:18]} (12... Ba6 $11) ({Predecessor:} 12... Ba6 13. Rc1 Nc6 14. c4 cxd4 15. exd4 Ng4 16. Ng3 Qf4 17. h3 Nf6 18. Ne2 Qh4 {0-1 (38) Rakhmanov,A (2653)-Mamedyarov,S (2799) Riadh 2017}) 13. Qc2 $14 {[%emt 0:05:42]} Bb7 {[%emt 0:07:56]} 14. f3 {[%emt 0:01:34] Against Be4} e5 {[%emt 0:01:08]} 15. e4 {[%emt 0:01:56]} Nbd7 {[%emt 0:00:59]} 16. Rad1 {[%emt 0:00:57]} Rac8 {[%emt 0:00:24]} 17. Ng3 {[%emt 0:05:26]} Nf8 {[%emt 0:06:13]} 18. Nf5 {[%emt 0:05:12]} Ng6 {[%emt 0:03:24] [#]} (18... g6 $142) 19. a4 $1 $16 {[%emt 0:04:55]} Ne7 {[%emt 0:04:49]} 20. Ne3 {[%emt 0:01:41]} Ba6 {[%emt 0:12:29]} 21. Ba3 {[%emt 0:04:29]} Ne8 {[%emt 0:01:05]} (21... Re8 $16 22. d5 Ng6) 22. Ng4 {[%emt 0:07:21]} (22. f4 $18) 22... Nc6 {[%emt 0:03:24][%cal Re5d4]} 23. d5 {[%emt 0:10:57]} Ne7 {[%emt 0:00:28]} 24. d6 {[%emt 0:00:16]} (24. g3 $16) 24... Nxd6 $11 {[%emt 0:01:09]} 25. Nxe5 {[%emt 0:00:13]} Nb7 {[%emt 0:05:42]} 26. Ng4 {[%emt 0:11:19][%cal Be5g4,Bg4e3,Be3d5][%mdl 32]} Nc5 {[%emt 0:00:54]} 27. Rd4 {[%emt 0:01:01]} Nd3 {[%emt 0:06:33]} 28. Ne3 {[%emt 0:02:31]} Ng6 {[%emt 0:05:49]} 29. Nd5 {[%emt 0:07:06]} Qe5 {[%emt 0:00:18]} 30. Rd1 {[%emt 0:01:07]} (30. g3 $16) 30... Re8 {[%emt 0:02:15]} ({Black should play} 30... Kh8 $11) 31. Ne3 {[%emt 0:00:50][%cal Ra2c4]} Qg5 $1 {[%emt 0:00:20]} 32. Qd2 {[%emt 0:00:54][%cal Re3c4]} Nge5 {[%emt 0:01:12] And now ...Nxf3+ would win.} 33. Rf1 {[%emt 0:01:49]} Nf4 $2 {[%emt 0:01:40]} (33... Qf4 $14) 34. Nd5 $18 {[%emt 0:02:13]} Ned3 {[%emt 0:02:08]} (34... Nh3+ {was called for.} 35. Kh1 Qxd2 36. Rxd2 Ng5 37. Ne7+ Rxe7) 35. Nxf4 {[%emt 0:00:25]} Nxf4 {[%emt 0:00:03] [#]} 36. g3 $2 {[%emt 0:01:30]} (36. Bc1 $1 $18 {is the precise move to win.}) 36... Ne6 $16 {[%emt 0:00:05]} 37. Qxg5 {[%emt 0:00:06]} Nxg5 {[%emt 0:00:04]} 38. Kf2 {[%emt 0:00:35]} b5 {[%emt 0:03:48]} (38... Ne6 $16 {might work better.}) 39. a5 {[%emt 0:07:44]} (39. Rd5 $18 Rcd8 40. Rfd1 (40. Rxg5 Rd2+ 41. Ke3 Rxa2 $14) (40. axb5 Bxb5 41. Rfd1 Ne6 $16)) 39... Ne6 {[%emt 0:03:40]} 40. Rd7 {[%emt 0:00:28]} Rcd8 {[%emt 0:00:14]} 41. Rfd1 {[%emt 0:31:38] Hoping for R1d5.} Bc8 {[%emt 0:31:16]} 42. Rxd8 {[%emt 0:00:00]} Rxd8 {[%emt 0:00:00]} 43. Rxd8+ {[%emt 0:00:00]} Nxd8 {[%emt 0:00:00][%mdl 4096] Endgame KBB-KBN} 44. Bc5 {[%emt 0:00:00]} Nc6 {[%emt 0:02:29]} 45. Bb1 {[%emt 0:00:00]} f6 {[%emt 0:00:00][%cal Bf7f6,Bf6f5][%mdl 32]} 46. e5 {[%emt 0:00:00]} f5 {[%emt 0:00:00] Against Be4} 47. f4 {[%emt 0:00:00]} Kf7 {[%emt 0:00:00]} 48. Bc2 {[%emt 0:00:00]} a6 {[%emt 0:00:00]} 49. Bb6 {[%emt 0:00:00]} Be6 {[%emt 0:00:00]} 50. Bd1 {[%emt 0:00:00]} Bd5 {[%emt 0:00:00]} 51. g4 {[%emt 0:00:00]} g6 {[%emt 0:00:00]} 52. gxf5 {[%emt 0:00:40]} gxf5 {[%emt 0:00:00]} 53. Bh5+ {[%emt 0:00:14]} Ke6 {[%emt 0:00:00]} 54. Ke3 {[%emt 0:00:22]} Be4 {[%emt 0:00:00]} 55. Be8 {[%emt 0:01:21]} Ne7 {[%emt 0:00:00] ...Nd5+ is the strong threat.} 56. Bc5 $2 {[%emt 0:00:54][%mdl 8192]} (56. Kd2 $1 $11 {and White is okay.}) 56... Nd5+ $19 {[%emt 0:00:00]} 57. Kd2 {[%emt 0:03:11]} Nxf4 {[%emt 0:00:00]} 58. Bd4 $2 {[%emt 0:01:06]} (58. Ke3 Nd3 59. Bb6) 58... Nd3 {[%emt 0:00:00]} (58... Ke7 $142 59. Be3 Nd5) 59. Ke2 $2 {[%emt 0:01:02]} (59. Bh5) 59... Nxe5 {[%emt 0:00:04] Threatens to win with ...f4.} 60. Bxe5 $2 {[%emt 0:00:20]} (60. Kd2) 60... Kxe5 {[%emt 0:00:07]} 61. Bd7 {[%emt 0:00:08]} Bb7 {[%emt 0:00:57] A wild game.  Weighted Error Value: White=0.47/Black=0.34} 0-1

[Event "FRA-ch Teams Top 16-B 2022"]
[Site "Chartres"]
[Date "2022.06.12"]
[Round "4.9"]
[White "Van Foreest, Jorden"]
[Black "Rouler, Charly"]
[Result "1-0"]
[ECO "B41"]
[WhiteElo "2715"]
[BlackElo "2345"]
[Annotator "TA"]
[PlyCount "53"]
[EventDate "2022.06.09"]
[EventType "team-tourn"]
[EventCountry "FRA"]
[SourceTitle "playchess.com"]
[Source "ChessBase"]
[SourceQuality "1"]
[TimeControl "40/5400+30:1800+30"]

{[%evp 12,53,51,51,57,32,57,62,58,65,65,64,78,52,72,85,54,31,95,100,94,28,267,262,255,270,274,262,327,325,317,321,323,326,389,402,410,396,403,369,408,397,615,606]} 1. e4 {[%emt 0:00:05]} c5 {[%emt 0:00:06]} 2. Nf3 {[%emt 0:00:11]} e6 {[%emt 0:00:19]} 3. d4 {[%emt 0:00:22]} cxd4 {[%emt 0:00:04]} 4. Nxd4 {[%emt 0:00:08]} a6 {[%emt 0:00:02]} 5. c4 {[%emt 0:01:53]} Nf6 {[%emt 0:00:19]} 6. Nc3 {[%emt 0:00:08]} d6 {[%emt 0:00:20]} 7. Be3 {[%emt 0:01:27]} Be7 {[%emt 0:00:13] B41: Sicilian: Kan Variation: 5 c4.} 8. g4 $5 {[%emt 0:00:42][%cal Bg2g4,Bg4g5][%mdl 4] Leaves trodden paths.} Nc6 {[%emt 0:15:28]} 9. g5 {[%emt 0:00:17] Strongly threatening Nxc6.} Nd7 {[%emt 0:00:07] White is slightly better.} 10. h4 {[%emt 0:00:13] [#]} Nxd4 $146 {[%emt 0:13:41]} ({Predecessor:} 10... Nde5 11. f4 Nd7 12. Qd2 Nxd4 13. Bxd4 e5 14. Be3 exf4 15. Bxf4 O-O 16. Bxd6 Nc5 {0-1 (33) Deac,B (2625)-Martemianov,I (2365) Chess.com INT 2020}) 11. Qxd4 {[%emt 0:00:11]} O-O {[%emt 0:00:51][%cal Ob7b5]} 12. f4 $36 {[%emt 0:00:06][%mdl 2048] White has the initiative. White is more active.} e5 {[%emt 0:02:11] [#]} 13. Qd2 {[%emt 0:00:09] And now f5 would win.} exf4 {[%emt 0:00:52]} 14. Bxf4 {[%emt 0:00:06][%cal Be3f4,Bf4e5,Be5d6][%mdl 32]} Ne5 {[%emt 0:00:40] [#]} (14... f6 $1 $14) 15. O-O-O $1 $16 {[%emt 0:00:05][%cal Oc4c5] Hoping for c5!} Be6 {[%emt 0:04:43]} 16. c5 {[%emt 0:16:52]} (16. Kb1 $16) 16... Bg4 $2 {[%emt 0:12:52] A mistake that costs the game.} (16... Qa5 $1 $11 {and Black is okay.}) 17. cxd6 $18 {[%emt 0:02:24]} Bxd6 {[%emt 0:46:12]} (17... Bxd1 $2 18. Bxe5 Bxd6 19. Bxd6 $18 (19. Qxd6 Bg4 $18)) 18. Qxd6 {[%emt 0:00:31]} Bxd1 {[%emt 0:00:00]} 19. Bxe5 {[%emt 0:00:39]} ({Don't play} 19. Qxd1 $6 Qxd1+ 20. Kxd1 Rad8+ 21. Kc2 Rfe8 $18) 19... Bg4 {[%emt 0:00:00]} 20. Bc4 {[%emt 0:00:51]} Qxd6 {[%emt 0:00:00]} 21. Bxd6 {[%emt 0:00:07] A strong pair of Bishops.} Rfd8 {[%emt 0:00:00]} 22. e5 {[%emt 0:00:18]} Be6 {[%emt 0:00:00]} 23. Bxe6 {[%emt 0:02:04]} fxe6 {[%emt 0:00:00]} 24. Kd2 {[%emt 0:00:05]} Rac8 {[%emt 0:00:00]} 25. Ke3 {[%emt 0:02:04]} Rc4 {[%emt 0:00:00]} 26. Ne2 {[%emt 0:00:05]} Rg4 {[%emt 0:00:00]} (26... Ra4 $142 27. a3 Rg4) 27. Nf4 {[%emt 0:00:22] Weighted Error Value: White=0.11 (very precise) /Black=0.41} 1-0

[Event "FRA-ch Teams Top 16-B 2022"]
[Site "Chartres"]
[Date "2022.06.12"]
[Round "4.10"]
[White "Marzolo, Cyril"]
[Black "Amin, Bassem"]
[Result "0-1"]
[ECO "D00"]
[WhiteElo "2376"]
[BlackElo "2686"]
[Annotator "TA"]
[PlyCount "48"]
[EventDate "2022.06.09"]
[EventType "team-tourn"]
[EventCountry "FRA"]
[SourceTitle "playchess.com"]
[Source "ChessBase"]
[SourceQuality "1"]
[TimeControl "40/5400+30:1800+30"]

{[%evp 9,48,-6,-8,0,0,0,0,4,0,0,0,0,0,0,-2,-22,-12,-10,-6,-22,-4,-21,-18,-29,-27,-35,-32,-45,-34,-70,-66,-66,-33,-41,-36,-45,-31,-33,-32,-185,-195]} 1. d4 {[%emt 0:00:03]} Nf6 {[%emt 0:00:58]} 2. Nf3 {[%emt 0:00:21]} g6 {[%emt 0:00:15]} 3. Nc3 {[%emt 0:00:43]} d5 {[%emt 0:00:32]} 4. Bf4 {[%emt 0:00:23]} Bg7 {[%emt 0:00:12]} 5. Nb5 {[%emt 0:00:32]} Na6 {[%emt 0:00:08][%cal Bb8a6,Ba6c7,Bc7e8,Be8d6][%mdl 32]} 6. e3 {[%emt 0:00:05] D00: 1 d4 d5: Unusual lines.} c6 {[%emt 0:01:39]} 7. Nc3 {[%emt 0:01:27]} Nc7 {[%emt 0:00:21]} 8. h3 {[%emt 0:00:07] The position is equal.} O-O {[%emt 0:00:07][%cal Oc6c5]} 9. Be2 {[%emt 0:00:12]} Nce8 {[%emt 0:00:39]} 10. O-O {[%emt 0:00:29]} Nd6 {[%emt 0:00:18]} 11. Ne5 {[%emt 0:01:45]} Nd7 {[%emt 0:05:57]} 12. Nxd7 {[%emt 0:01:41] [#]} Bxd7 $146 {[%emt 0:00:34]} ({Predecessor:} 12... Qxd7 13. Re1 Re8 14. Bf3 f5 15. Na4 e5 16. Bxe5 Bxe5 17. dxe5 Nc4 18. Nc5 Qg7 {½-½ (33) Chitlange,S (2196)-Das,S (2418) Pune 2019}) 13. b3 {[%emt 0:04:05]} Re8 {[%emt 0:02:44]} 14. Bf3 {[%emt 0:09:18]} Bf5 {[%emt 0:03:52]} 15. g4 {[%emt 0:07:54]} Be6 {[%emt 0:05:03][%cal Bf5e6,Be6f7,Bf7g6][%mdl 32]} 16. Be5 {[%emt 0:07:45]} f6 {[%emt 0:00:37][%cal Bf7f6,Bf6f5,Bf5g4][%mdl 32]} 17. Bg3 {[%emt 0:00:20]} Qd7 {[%emt 0:08:29]} 18. Bg2 {[%emt 0:05:25]} Bf7 {[%emt 0:02:26]} 19. f4 {[%emt 0:02:35]} Rad8 {[%emt 0:00:40]} 20. Qd3 {[%emt 0:05:23]} g5 {[%emt 0:07:31]} 21. Rad1 {[%emt 0:37:36]} f5 {[%emt 0:04:55]} 22. fxg5 {[%emt 0:11:03][%cal Rg4f5]} fxg4 {[%emt 0:00:27] ...e5 is the strong threat.} 23. h4 $1 {[%emt 0:00:34]} Bg6 {[%emt 0:00:21]} 24. Qe2 {[%emt 0:00:23] [#]} (24. e4 $1 $15) 24... Nf5 $1 {[%emt 0:00:34] Weighted Error Value: White=0.21 (precise) /Black=0.04 (flawless)} 0-1

[Event "FRA-ch Teams Top 16-B 2022"]
[Site "Chartres"]
[Date "2022.06.12"]
[Round "4.11"]
[White "Vocaturo, Daniele"]
[Black "Crut, Aurelien"]
[Result "1/2-1/2"]
[ECO "C03"]
[WhiteElo "2608"]
[BlackElo "2355"]
[Annotator "TA"]
[PlyCount "240"]
[EventDate "2022.06.09"]
[EventType "team-tourn"]
[EventCountry "FRA"]
[SourceTitle "playchess.com"]
[Source "ChessBase"]
[SourceQuality "1"]
[TimeControl "40/5400+30:1800+30"]

{[%evp 43,240,0,0,-16,0,-25,0,-22,-14,-43,0,0,18,11,13,14,33,38,41,29,32,16,18,28,22,24,36,35,29,0,10,10,10,0,44,0,43,43,44,44,44,44,58,51,60,44,44,43,43,44,44,29,58,42,44,36,48,50,58,51,58,58,58,21,58,58,75,16,58,12,58,21,58,58,66,23,58,23,58,16,58,58,58,58,58,23,58,0,58,0,58,58,58,58,66,16,58,0,66,0,58,58,58,16,40,2,2,2,38,2,2,2,38,38,38,2,2,0,0,0,62,2,2,2,2,2,2,2,2,2,2,2,2,2,2,2,2,2,2,2,2,2,2,2,2,2,2,2,41,2,2,0,41,0,0,0,41,0,2,2,2,2,2,2,2,2,22,22,22,0,0,0,25,0,0,0,25,16,16,16,16,16,16,16,16,16,16,16,16,16,16,16,16,16,16,16,16,16,16]} 1. e4 {[%emt 0:00:41]} e6 {[%emt 0:00:15]} 2. d4 {[%emt 0:01:01]} d5 {[%emt 0:00:09]} 3. Nc3 {[%emt 0:00:21]} Be7 {[%emt 0:00:14]} 4. Bd3 {[%emt 0:03:13]} Nc6 {[%emt 0:01:20]} 5. Nf3 {[%emt 0:03:25]} Nb4 {[%emt 0:00:57]} 6. Be2 {[%emt 0:02:43]} dxe4 {[%emt 0:06:34]} 7. Nxe4 {[%emt 0:00:11]} Nf6 {[%emt 0:00:32]} 8. Nxf6+ {[%emt 0:05:11]} Bxf6 {[%emt 0:03:30]} 9. a3 {[%emt 0:04:05]} Nc6 {[%emt 0:08:53]} 10. Bb5 {[%emt 0:04:09]} Bd7 {[%emt 0:02:55]} 11. O-O {[%emt 0:01:11]} O-O {[%emt 0:08:12]} 12. Re1 {[%emt 0:00:41]} Ne7 {[%emt 0:05:50]} 13. Bf1 {[%emt 0:01:16]} Ng6 {[%emt 0:05:58]} 14. c3 {[%emt 0:02:06]} Bc6 {[%emt 0:05:23]} 15. Bd3 {[%emt 0:03:47]} Re8 {[%emt 0:05:28]} 16. Bxg6 {[%emt 0:06:50]} hxg6 {[%emt 0:00:46]} 17. Bf4 {[%emt 0:00:55]} b6 {[%emt 0:10:47]} 18. Ne5 {[%emt 0:02:22]} Bb7 {[%emt 0:02:05]} 19. Qg4 {[%emt 0:01:15]} Qe7 {[%emt 0:05:48]} 20. Nc4 {[%emt 0:06:54]} Rad8 {[%emt 0:04:26]} 21. Qg3 {[%emt 0:00:57]} Bh4 {[%emt 0:01:36]} 22. Qh3 {[%emt 0:01:25]} Bf6 {[%emt 0:01:27]} 23. Qg3 {[%emt 0:03:27]} Bh4 {[%emt 0:00:26]} 24. Qe3 {[%emt 0:00:09]} Bf6 {[%emt 0:03:11]} 25. Rad1 {[%emt 0:00:29]} Qd7 {[%emt 0:01:44]} 26. Qg3 {[%emt 0:01:19]} Rc8 {[%emt 0:01:57]} (26... Qb5 $5 {[%cal Rb5c4]} 27. Qd3 Ba6 $15) 27. Be5 {[%emt 0:02:47]} Qc6 {[%emt 0:02:11]} 28. Ne3 {[%emt 0:02:43]} Bxe5 {[%emt 0:00:48]} 29. dxe5 {[%emt 0:00:43]} Rcd8 {[%emt 0:04:26]} 30. Qg5 {[%emt 0:01:16]} Rd7 {[%emt 0:02:26]} 31. h4 {[%emt 0:05:07]} Ree7 {[%emt 0:01:11]} 32. Qg4 {[%emt 0:03:47]} Rxd1 {[%emt 0:00:20]} 33. Rxd1 {[%emt 0:00:05]} Rd7 {[%emt 0:00:11]} 34. Rd4 {[%emt 0:00:07]} Rxd4 {[%emt 0:00:34]} 35. Qxd4 {[%emt 0:00:07]} Qe8 {[%emt 0:00:45]} 36. f4 {[%emt 0:03:16]} Bc6 {[%emt 0:00:35]} 37. Kf2 {[%emt 0:00:18]} Qe7 {[%emt 0:01:07]} 38. g3 {[%emt 0:00:28]} Kf8 {[%emt 0:01:32]} 39. b4 {[%emt 0:01:13]} Qd7 {[%emt 0:01:17]} 40. Qxd7 {[%emt 0:02:29]} Bxd7 {[%emt 0:00:03]} 41. Ke2 {[%emt 0:30:04]} Bb5+ {[%emt 0:32:36]} 42. c4 {[%emt 0:00:59]} Ba6 {[%emt 0:00:00]} 43. Kd3 {[%emt 0:00:00]} Ke7 {[%emt 0:00:00]} 44. Kd4 {[%emt 0:00:00]} Bb7 {[%emt 0:00:00]} 45. Nd1 {[%emt 0:00:00]} Kd7 {[%emt 0:02:35]} 46. Nc3 {[%emt 0:00:00]} Bc6 {[%emt 0:00:00]} 47. a4 {[%emt 0:00:00]} Kc8 {[%emt 0:00:00]} 48. c5 {[%emt 0:00:00]} Kd7 {[%emt 0:00:00]} 49. Kc4 {[%emt 0:00:00]} Kc8 {[%emt 0:00:00]} 50. b5 {[%emt 0:00:00]} Bg2 {[%emt 0:00:00]} 51. Kb4 {[%emt 0:00:00]} Bf3 {[%emt 0:00:00]} 52. a5 {[%emt 0:00:00]} Kb7 {[%emt 0:00:00]} 53. Nb1 {[%emt 0:00:00]} Be4 {[%emt 0:00:00]} 54. Nd2 {[%emt 0:00:00]} Bd5 {[%emt 0:00:00]} 55. Nf1 {[%emt 0:00:00]} (55. a6+ $16 Kc8 56. c6) 55... Bf3 {[%emt 0:00:00]} 56. Ne3 {[%emt 0:00:00]} (56. c6+ $14 Kc8 57. a6) 56... Be2 {[%emt 0:00:00]} (56... bxa5+ $11 57. Kxa5 c6) 57. Nc2 {[%emt 0:00:00]} Bd3 {[%emt 0:00:01]} 58. Nd4 {[%emt 0:00:00]} Be4 $1 {[%emt 0:00:07]} 59. g4 {[%emt 0:00:00]} Kc8 {[%emt 0:02:46]} 60. g5 {[%emt 0:13:14]} Kb7 {[%emt 0:00:33]} 61. Ne2 {[%emt 0:00:09]} Bf3 {[%emt 0:00:38]} 62. Nc3 {[%emt 0:00:07]} Kc8 {[%emt 0:00:26]} 63. Na4 {[%emt 0:00:29]} Kb7 {[%emt 0:00:16]} 64. Nb2 {[%emt 0:00:06]} Be2 {[%emt 0:00:36]} 65. Na4 {[%emt 0:00:21]} Bf3 {[%emt 0:00:19]} 66. Nc3 {[%emt 0:00:52]} Kc8 $1 {[%emt 0:00:33]} 67. Nb1 {[%emt 0:00:11]} Kb7 {[%emt 0:01:22]} 68. Nd2 {[%emt 0:00:09]} Bd5 {[%emt 0:00:03]} 69. Nf1 {[%emt 0:00:19]} (69. a6+ $14 Kc8 70. cxb6 cxb6 71. Kc3) 69... Bf3 {[%emt 0:00:15]} 70. Nd2 {[%emt 0:04:34]} Bd5 $1 {[%emt 0:00:05]} 71. Nb1 {[%emt 0:00:55]} ({White should try} 71. c6+ $14 Kc8 72. a6) 71... Be4 {[%emt 0:00:59]} (71... Bf3 $11) 72. Nc3 {[%emt 0:00:27]} Bf3 {[%emt 0:00:10]} 73. cxb6 {[%emt 0:02:11]} cxb6 {[%emt 0:00:13]} 74. axb6 {[%emt 0:00:07]} axb6 {[%emt 0:00:12]} 75. Kc4 {[%emt 0:00:10]} Kc7 {[%emt 0:00:36]} 76. Kd4 {[%emt 0:00:05]} Bg2 {[%emt 0:01:19]} 77. Ke3 {[%emt 0:00:13]} Kd7 {[%emt 0:01:21]} 78. Kf2 {[%emt 0:00:10]} Bb7 {[%emt 0:00:19]} 79. Kg3 {[%emt 0:00:06]} Ba8 {[%emt 0:00:42]} 80. Kg4 {[%emt 0:00:59]} Bg2 {[%emt 0:00:11]} 81. Kg3 {[%emt 0:00:32]} Bb7 {[%emt 0:00:03]} (81... Ba8 $11) 82. Ne2 {[%emt 0:00:23]} (82. Kf2 $1 $14) 82... Be4 $11 {[%emt 0:00:54]} 83. Nd4 {[%emt 0:00:42]} Bd3 {[%emt 0:00:30]} 84. Kf2 {[%emt 0:00:09]} Ke7 {[%emt 0:00:43]} 85. Ke3 {[%emt 0:00:11]} Bf1 {[%emt 0:00:15]} 86. Kd2 {[%emt 0:00:04]} Kd7 {[%emt 0:00:36]} 87. Kc3 {[%emt 0:00:04]} Ke7 {[%emt 0:00:50]} 88. Kb4 {[%emt 0:00:11]} Bd3 {[%emt 0:00:31]} 89. Nb3 {[%emt 0:00:24]} Kd7 {[%emt 0:00:20]} 90. Nc1 {[%emt 0:00:06]} Bf1 {[%emt 0:00:11]} 91. Na2 {[%emt 0:00:06]} Bd3 {[%emt 0:00:24]} 92. Nc3 {[%emt 0:00:04]} Kc7 {[%emt 0:00:36]} 93. Nd1 {[%emt 0:00:11]} Kd7 {[%emt 0:00:20]} 94. Nf2 {[%emt 0:00:47]} Bc2 {[%emt 0:00:31]} 95. Kc3 {[%emt 0:00:38]} Bf5 {[%emt 0:00:33]} 96. Kd4 {[%emt 0:00:14]} Bc2 {[%emt 0:00:22]} 97. Kc3 {[%emt 0:00:46]} Bf5 {[%emt 0:00:05]} 98. Nd1 {[%emt 0:00:18]} Bg4 $1 {[%emt 0:00:12]} 99. Nf2 {[%emt 0:00:17]} Bf5 {[%emt 0:00:23]} 100. Kd4 {[%emt 0:00:31]} Bc2 {[%emt 0:00:15]} 101. Nh1 {[%emt 0:00:13]} Ba4 {[%emt 0:01:04]} 102. Kc4 {[%emt 0:00:04]} Bd1 {[%emt 0:00:21]} 103. Ng3 {[%emt 0:00:18]} Bf3 {[%emt 0:00:05]} 104. Kd4 {[%emt 0:00:05]} Ke7 {[%emt 0:00:53]} 105. Ke3 {[%emt 0:00:13]} Bd5 {[%emt 0:00:31]} 106. Ne2 {[%emt 0:00:17]} Bc4 {[%emt 0:00:18]} 107. Nc3 {[%emt 0:00:07]} Bf1 {[%emt 0:01:04]} 108. Kd4 {[%emt 0:00:34]} Kd8 {[%emt 0:00:53]} 109. Ke3 {[%emt 0:02:01]} Ke7 {[%emt 0:01:14]} 110. Na4 {[%emt 0:01:05]} Bxb5 {[%emt 0:00:08]} 111. Nxb6 {[%emt 0:00:02]} Bc6 {[%emt 0:01:08]} 112. Kd4 {[%emt 0:00:05]} Bf3 {[%emt 0:00:11]} 113. Kc5 {[%emt 0:00:04]} Bg2 {[%emt 0:00:20]} 114. Nc4 {[%emt 0:00:17]} Bd5 {[%emt 0:01:03]} 115. Nd6 {[%emt 0:00:09]} Bf3 {[%emt 0:00:34]} 116. Kd4 {[%emt 0:00:08]} Bg2 {[%emt 0:00:13]} 117. Ke3 {[%emt 0:00:05]} Bc6 {[%emt 0:00:08]} 118. Kf2 {[%emt 0:00:18]} Bd5 {[%emt 0:00:14]} 119. Kg3 {[%emt 0:00:07]} Bb3 {[%emt 0:00:59]} 120. Kg4 {[%emt 0:00:08]} Bd1+ {[%emt 0:00:07]} 1/2-1/2